[Event "Titled Tuesday Blitz February 15 Early 2022"]
[White "Musovic, Armin"]
[Black "Davtyan, Artur"]
[WhiteFideId "939935"]
[BlackFideId "13308327"]
[WhiteElo "2250"]
[BlackElo "2311"]
[Result "0-1"]
[Round "04"]
[TimeControl "180+1"]
[Date "2022.02.15"]
[WhiteClock "0:00:15"]
[BlackClock "0:00:14"]

1. a3 {[%clk 0:03:00]}  b6 {[%clk 0:02:58]} 2. Nc3 {[%clk 0:03:01]}  Bb7 {[%clk 0:02:58]} 3. e4 {[%clk 0:03:02]}  c5 {[%clk 0:02:56]} 4. Bc4 {[%clk 0:03:02]}  e6 {[%clk 0:02:56]} 5. d3 {[%clk 0:03:02]}  Nf6 {[%clk 0:02:53]} 6. Ba2 {[%clk 0:03:00]}  Be7 {[%clk 0:02:53]} 7. Nge2 {[%clk 0:03:00]}  O-O {[%clk 0:02:53]} 8. O-O {[%clk 0:03:00]}  d5 {[%clk 0:02:54]} 9. e5 {[%clk 0:03:00]}  Nfd7 {[%clk 0:02:54]} 10. f4 {[%clk 0:03:01]}  Nc6 {[%clk 0:02:54]} 11. Bd2 {[%clk 0:02:54]}  a6 {[%clk 0:02:54]} 12. Ng3 {[%clk 0:02:49]}  g6 {[%clk 0:02:51]} 13. Qg4 {[%clk 0:02:41]}  Kh8 {[%clk 0:02:50]} 14. h4 {[%clk 0:02:32]}  Bxh4 {[%clk 0:02:48]} 15. Nge2 {[%clk 0:02:32]}  h5 {[%clk 0:02:43]} 16. Qh3 {[%clk 0:02:32]}  Kg7 {[%clk 0:02:43]} 17. g3 {[%clk 0:02:30]}  Be7 {[%clk 0:02:42]} 18. Kf2 {[%clk 0:02:30]}  b5 {[%clk 0:02:41]} 19. Rh1 {[%clk 0:02:25]}  b4 {[%clk 0:02:41]} 20. Nd1 {[%clk 0:02:24]}  Rh8 {[%clk 0:02:37]} 21. Ne3 {[%clk 0:02:18]}  bxa3 {[%clk 0:02:37]} 22. bxa3 {[%clk 0:02:18]}  Nd4 {[%clk 0:02:37]} 23. Rag1 {[%clk 0:02:15]}  Nxe2 {[%clk 0:02:36]} 24. Kxe2 {[%clk 0:02:15]}  c4 {[%clk 0:02:36]} 25. d4 {[%clk 0:02:06]}  c3 {[%clk 0:02:34]} 26. Bc1 {[%clk 0:02:03]}  Qb6 {[%clk 0:02:31]} 27. g4 {[%clk 0:01:46]}  hxg4 {[%clk 0:02:24]} 28. Qxg4 {[%clk 0:01:47]}  Qxd4 {[%clk 0:02:21]} 29. f5 {[%clk 0:01:40]}  Qxg4+ {[%clk 0:02:19]} 30. Nxg4 {[%clk 0:01:35]}  exf5 {[%clk 0:02:16]} 31. Bh6+ {[%clk 0:01:33]}  Kg8 {[%clk 0:01:46]} 32. Ne3 {[%clk 0:01:29]}  Bf8 {[%clk 0:01:06]} 33. Bxf8 {[%clk 0:00:40]}  Rxh1 {[%clk 0:01:06]} 34. Rxh1 {[%clk 0:00:40]}  Rxf8 {[%clk 0:01:03]} 35. Nxd5 {[%clk 0:00:36]}  Nxe5 {[%clk 0:01:02]} 36. Ke3 {[%clk 0:00:30]}  Rd8 {[%clk 0:00:56]} 37. Nf6+ {[%clk 0:00:19]}  Kg7 {[%clk 0:00:56]} 38. Rb1 {[%clk 0:00:20]}  Bg2 {[%clk 0:00:30]} 39. Rb6 {[%clk 0:00:19]}  Rd2 {[%clk 0:00:22]} 40. Bb3 {[%clk 0:00:16]}  g5 {[%clk 0:00:14]} 41. Ne8+ {[%clk 0:00:15]}  Kf8 {[%clk 0:00:14]} 0-1


[Site "https://www.chess.com"]

[Event "Titled Tuesday Blitz February 15 Early 2022"]
[White "Narayanan.S.L"]
[Black "Williams, Simon K"]
[WhiteFideId "5058422"]
[BlackFideId "404454"]
[WhiteElo "2494"]
[BlackElo "2468"]
[Result "1-0"]
[Round "04"]
[TimeControl "180+1"]
[Date "2022.02.15"]
[WhiteClock "0:01:23"]
[BlackClock "0:00:07"]

1. b3 {[%clk 0:02:59]}  e5 {[%clk 0:02:59]} 2. Bb2 {[%clk 0:02:59]}  e4 {[%clk 0:02:59]} 3. e3 {[%clk 0:02:58]}  d5 {[%clk 0:02:58]} 4. d3 {[%clk 0:02:58]}  Nf6 {[%clk 0:02:57]} 5. Nd2 {[%clk 0:02:53]}  Bf5 {[%clk 0:02:45]} 6. dxe4 {[%clk 0:02:20]}  dxe4 {[%clk 0:02:41]} 7. Ne2 {[%clk 0:02:20]}  Nbd7 {[%clk 0:02:23]} 8. Ng3 {[%clk 0:02:19]}  Bg6 {[%clk 0:02:23]} 9. Be2 {[%clk 0:02:15]}  h5 {[%clk 0:02:20]} 10. h4 {[%clk 0:02:10]}  Bd6 {[%clk 0:02:19]} 11. Nc4 {[%clk 0:02:07]}  Bxg3 {[%clk 0:02:16]} 12. fxg3 {[%clk 0:02:08]}  Qe7 {[%clk 0:02:15]} 13. O-O {[%clk 0:02:08]}  O-O-O {[%clk 0:02:11]} 14. Qe1 {[%clk 0:02:07]}  Nb6 {[%clk 0:01:52]} 15. Qa5 {[%clk 0:02:01]}  Kb8 {[%clk 0:01:48]} 16. Rad1 {[%clk 0:02:01]}  Nxc4 {[%clk 0:01:40]} 17. bxc4 {[%clk 0:02:01]}  Nd7 {[%clk 0:01:18]} 18. Bxg7 {[%clk 0:01:34]}  Rhg8 {[%clk 0:01:17]} 19. Bh6 {[%clk 0:01:34]}  Qe5 {[%clk 0:00:40]} 20. Qxe5 {[%clk 0:01:30]}  Nxe5 {[%clk 0:00:39]} 21. Bf4 {[%clk 0:01:28]}  Nc6 {[%clk 0:00:31]} 22. g4 {[%clk 0:01:27]}  hxg4 {[%clk 0:00:26]} 23. Bxg4 {[%clk 0:01:28]}  f5 {[%clk 0:00:25]} 24. Be2 {[%clk 0:01:27]}  Kc8 {[%clk 0:00:22]} 25. Kf2 {[%clk 0:01:27]}  a5 {[%clk 0:00:20]} 26. a3 {[%clk 0:01:26]}  Bh7 {[%clk 0:00:20]} 27. h5 {[%clk 0:01:26]}  Rxd1 {[%clk 0:00:16]} 28. Rxd1 {[%clk 0:01:25]}  Rd8 {[%clk 0:00:16]} 29. Rxd8+ {[%clk 0:01:24]}  Kxd8 {[%clk 0:00:17]} 30. g4 {[%clk 0:01:24]}  fxg4 {[%clk 0:00:16]} 31. Bxg4 {[%clk 0:01:25]}  Ne7 {[%clk 0:00:10]} 32. Bg5 {[%clk 0:01:24]}  Ke8 {[%clk 0:00:10]} 33. Kg3 {[%clk 0:01:23]}  Nf5+ {[%clk 0:00:09]} 34. Kf4 {[%clk 0:01:23]}  Nd6 {[%clk 0:00:10]} 35. c5 {[%clk 0:01:22]}  Nc4 {[%clk 0:00:09]} 36. Bf5 {[%clk 0:01:22]}  Bxf5 {[%clk 0:00:09]} 37. Kxf5 {[%clk 0:01:23]}  Nxa3 {[%clk 0:00:10]} 38. h6 {[%clk 0:01:23]}  Kf7 {[%clk 0:00:10]} 39. Bf6 {[%clk 0:01:23]}  Nc4 {[%clk 0:00:07]} 40. h7 {[%clk 0:01:23]}  Nxe3+ {[%clk 0:00:07]} 41. Kg5 {[%clk 0:01:23]} 1-0


[Site "https://www.chess.com"]

[Event "Titled Tuesday Blitz February 15 Early 2022"]
[White "Nilsen, Tobias Lang"]
[Black "Muradov, Soltan"]
[WhiteFideId "1521624"]
[BlackFideId "14002108"]
[WhiteElo "2013"]
[BlackElo "1854"]
[Result "1-0"]
[Round "04"]
[TimeControl "180+1"]
[Date "2022.02.15"]
[WhiteClock "0:00:19"]
[BlackClock "0:00:25"]

1. f4 {[%clk 0:03:00]}  e5 {[%clk 0:02:57]} 2. fxe5 {[%clk 0:03:01]}  d6 {[%clk 0:02:57]} 3. Nf3 {[%clk 0:03:01]}  Nc6 {[%clk 0:02:57]} 4. e4 {[%clk 0:03:01]}  Nxe5 {[%clk 0:02:53]} 5. d4 {[%clk 0:03:01]}  Nxf3+ {[%clk 0:02:48]} 6. Qxf3 {[%clk 0:03:01]}  Qf6 {[%clk 0:02:48]} 7. Qxf6 {[%clk 0:02:45]}  Nxf6 {[%clk 0:02:49]} 8. Nc3 {[%clk 0:02:45]}  Be7 {[%clk 0:02:35]} 9. Be2 {[%clk 0:02:36]}  O-O {[%clk 0:02:35]} 10. O-O {[%clk 0:02:36]}  Be6 {[%clk 0:02:33]} 11. h3 {[%clk 0:02:26]}  h6 {[%clk 0:02:25]} 12. Bf4 {[%clk 0:02:23]}  Rad8 {[%clk 0:02:20]} 13. Rad1 {[%clk 0:02:22]}  a6 {[%clk 0:02:20]} 14. Bf3 {[%clk 0:02:14]}  Bc4 {[%clk 0:02:14]} 15. Rfe1 {[%clk 0:02:13]}  b5 {[%clk 0:02:07]} 16. a3 {[%clk 0:02:12]}  Rfe8 {[%clk 0:01:50]} 17. b3 {[%clk 0:02:00]}  Be6 {[%clk 0:01:50]} 18. e5 {[%clk 0:01:48]}  dxe5 {[%clk 0:01:45]} 19. dxe5 {[%clk 0:01:47]}  Nh7 {[%clk 0:01:44]} 20. b4 {[%clk 0:01:31]}  Ng5 {[%clk 0:01:27]} 21. Bc6 {[%clk 0:01:18]}  Rxd1 {[%clk 0:01:26]} 22. Rxd1 {[%clk 0:01:19]}  Rd8 {[%clk 0:01:26]} 23. Rxd8+ {[%clk 0:01:17]}  Bxd8 {[%clk 0:01:27]} 24. Bb7 {[%clk 0:01:17]}  Be7 {[%clk 0:01:09]} 25. Bxa6 {[%clk 0:01:16]}  c5 {[%clk 0:01:10]} 26. Nxb5 {[%clk 0:00:36]}  cxb4 {[%clk 0:01:09]} 27. a4 {[%clk 0:00:36]}  Bc5+ {[%clk 0:01:07]} 28. Kf1 {[%clk 0:00:35]}  Ne4 {[%clk 0:01:00]} 29. Bb7 {[%clk 0:00:26]}  Bc4+ {[%clk 0:00:44]} 30. Ke1 {[%clk 0:00:26]}  Bf2+ {[%clk 0:00:45]} 31. Kd1 {[%clk 0:00:26]}  Nc5 {[%clk 0:00:46]} 32. Nd6 {[%clk 0:00:18]}  Be6 {[%clk 0:00:33]} 33. Bc6 {[%clk 0:00:17]}  b3 {[%clk 0:00:34]} 34. cxb3 {[%clk 0:00:13]}  Bxb3+ {[%clk 0:00:35]} 35. Ke2 {[%clk 0:00:14]}  Bg1 {[%clk 0:00:34]} 36. Kf1 {[%clk 0:00:14]}  Bd4 {[%clk 0:00:33]} 37. a5 {[%clk 0:00:14]}  Ne6 {[%clk 0:00:33]} 38. Bh2 {[%clk 0:00:13]}  Bc5 {[%clk 0:00:29]} 39. Bb5 {[%clk 0:00:12]}  Nc7 {[%clk 0:00:25]} 40. Be2 {[%clk 0:00:12]}  Kf8 {[%clk 0:00:20]} 41. a6 {[%clk 0:00:12]}  Ba7 {[%clk 0:00:20]} 42. Bg1 {[%clk 0:00:12]}  Bxg1 {[%clk 0:00:17]} 43. Kxg1 {[%clk 0:00:13]}  Nxa6 {[%clk 0:00:18]} 44. Bxa6 {[%clk 0:00:13]}  Ke7 {[%clk 0:00:18]} 45. Be2 {[%clk 0:00:13]}  Ke6 {[%clk 0:00:19]} 46. Bc4+ {[%clk 0:00:12]}  Bxc4 {[%clk 0:00:19]} 47. Nxc4 {[%clk 0:00:13]}  Kd5 {[%clk 0:00:20]} 48. Nd6 {[%clk 0:00:14]}  Kxe5 {[%clk 0:00:21]} 49. Nxf7+ {[%clk 0:00:14]}  Kf6 {[%clk 0:00:22]} 50. Nd6 {[%clk 0:00:14]}  Ke5 {[%clk 0:00:20]} 51. Nc4+ {[%clk 0:00:15]}  Kd4 {[%clk 0:00:21]} 52. Nd2 {[%clk 0:00:15]}  Ke5 {[%clk 0:00:21]} 53. Kf2 {[%clk 0:00:15]}  g5 {[%clk 0:00:21]} 54. Kg3 {[%clk 0:00:16]}  h5 {[%clk 0:00:20]} 55. Nf1 {[%clk 0:00:14]}  Kf5 {[%clk 0:00:20]} 56. Kf3 {[%clk 0:00:15]}  g4+ {[%clk 0:00:20]} 57. Kg3 {[%clk 0:00:14]}  gxh3 {[%clk 0:00:20]} 58. gxh3 {[%clk 0:00:15]}  Kg5 {[%clk 0:00:20]} 59. h4+ {[%clk 0:00:15]}  Kf5 {[%clk 0:00:21]} 60. Nh2 {[%clk 0:00:15]}  Kg6 {[%clk 0:00:22]} 61. Nf3 {[%clk 0:00:16]}  Kf5 {[%clk 0:00:23]} 62. Ng5 {[%clk 0:00:17]}  Kg6 {[%clk 0:00:23]} 63. Nh3 {[%clk 0:00:18]}  Kf6 {[%clk 0:00:24]} 64. Nf4 {[%clk 0:00:18]}  Kf5 {[%clk 0:00:25]} 65. Nxh5 {[%clk 0:00:19]} 1-0


[Site "https://www.chess.com"]

[Event "Titled Tuesday Blitz February 15 Early 2022"]
[White "Noroozi, Omid"]
[Black "Mikhailovsky, Vladimir"]
[WhiteFideId "12501190"]
[BlackFideId "34105414"]
[WhiteElo "2236"]
[BlackElo "2371"]
[Result "1-0"]
[Round "04"]
[TimeControl "180+1"]
[Date "2022.02.15"]
[WhiteClock "0:00:45"]
[BlackClock "0:00:01"]

1. e4 {[%clk 0:02:56]}  Nf6 {[%clk 0:02:58]} 2. e5 {[%clk 0:02:56]}  Nd5 {[%clk 0:02:58]} 3. c4 {[%clk 0:02:55]}  Nb6 {[%clk 0:02:58]} 4. c5 {[%clk 0:02:56]}  Nd5 {[%clk 0:02:58]} 5. Nc3 {[%clk 0:02:57]}  e6 {[%clk 0:02:58]} 6. Nxd5 {[%clk 0:02:55]}  exd5 {[%clk 0:02:59]} 7. d4 {[%clk 0:02:56]}  d6 {[%clk 0:02:59]} 8. cxd6 {[%clk 0:02:57]}  cxd6 {[%clk 0:02:59]} 9. Nf3 {[%clk 0:02:57]}  Nc6 {[%clk 0:02:59]} 10. Bd3 {[%clk 0:02:56]}  dxe5 {[%clk 0:02:54]} 11. Nxe5 {[%clk 0:02:57]}  Nxe5 {[%clk 0:02:53]} 12. dxe5 {[%clk 0:02:58]}  Bb4+ {[%clk 0:02:53]} 13. Bd2 {[%clk 0:02:58]}  Bxd2+ {[%clk 0:02:51]} 14. Qxd2 {[%clk 0:02:59]}  O-O {[%clk 0:02:51]} 15. O-O {[%clk 0:02:58]}  Qh4 {[%clk 0:02:45]} 16. f4 {[%clk 0:02:57]}  Bd7 {[%clk 0:02:26]} 17. f5 {[%clk 0:02:54]}  Qd4+ {[%clk 0:02:25]} 18. Kh1 {[%clk 0:02:53]}  Bb5 {[%clk 0:02:04]} 19. Rf3 {[%clk 0:02:53]}  Bxd3 {[%clk 0:02:02]} 20. Rxd3 {[%clk 0:02:54]}  Qxe5 {[%clk 0:02:01]} 21. Rxd5 {[%clk 0:02:54]}  Qf6 {[%clk 0:02:01]} 22. Rd1 {[%clk 0:02:45]}  Rae8 {[%clk 0:01:55]} 23. h3 {[%clk 0:02:39]}  h6 {[%clk 0:01:51]} 24. Qf2 {[%clk 0:02:37]}  Re5 {[%clk 0:01:43]} 25. Rxe5 {[%clk 0:02:24]}  Qxe5 {[%clk 0:01:44]} 26. b3 {[%clk 0:02:25]}  b6 {[%clk 0:01:33]} 27. Re1 {[%clk 0:02:19]}  Qf6 {[%clk 0:01:30]} 28. Qf4 {[%clk 0:02:11]}  Rd8 {[%clk 0:01:29]} 29. Kh2 {[%clk 0:02:09]}  Kh7 {[%clk 0:01:27]} 30. Re2 {[%clk 0:02:06]}  Rd4 {[%clk 0:01:25]} 31. Qf3 {[%clk 0:02:00]}  Qd6+ {[%clk 0:01:13]} 32. Qg3 {[%clk 0:01:59]}  Qf6 {[%clk 0:01:09]} 33. Rf2 {[%clk 0:01:49]}  a5 {[%clk 0:01:07]} 34. Qe3 {[%clk 0:01:46]}  a4 {[%clk 0:01:04]} 35. Qg3 {[%clk 0:01:41]}  a3 {[%clk 0:00:56]} 36. Qf3 {[%clk 0:01:37]}  Qe5+ {[%clk 0:00:50]} 37. g3 {[%clk 0:01:37]}  Re4 {[%clk 0:00:34]} 38. f6 {[%clk 0:01:32]}  Re3 {[%clk 0:00:21]} 39. Qg4 {[%clk 0:01:28]}  gxf6 {[%clk 0:00:16]} 40. h4 {[%clk 0:01:28]}  h5 {[%clk 0:00:15]} 41. Qh3 {[%clk 0:01:23]}  Kg6 {[%clk 0:00:11]} 42. Qg2 {[%clk 0:01:19]}  Re4 {[%clk 0:00:11]} 43. Kh3 {[%clk 0:01:04]}  b5 {[%clk 0:00:10]} 44. Rd2 {[%clk 0:00:50]}  f5 {[%clk 0:00:08]} 45. Qf2 {[%clk 0:00:47]}  f4 {[%clk 0:00:04]} 46. Rd3 {[%clk 0:00:47]}  Qf5+ {[%clk 0:00:04]} 47. Kg2 {[%clk 0:00:47]}  Qg4 {[%clk 0:00:04]} 48. Rf3 {[%clk 0:00:44]}  fxg3 {[%clk 0:00:01]} 49. Rxg3 {[%clk 0:00:45]} 1-0


[Site "https://www.chess.com"]

[Event "Titled Tuesday Blitz February 15 Early 2022"]
[White "Orlov, Georgi"]
[Black "Urbina Quiroz, Edwin"]
[WhiteFideId "2011271"]
[BlackFideId "6500650"]
[WhiteElo "2487"]
[BlackElo "2130"]
[Result "1-0"]
[Round "04"]
[TimeControl "180+1"]
[Date "2022.02.15"]
[WhiteClock "0:00:28"]
[BlackClock "0:00:01"]

1. d4 {[%clk 0:03:00]}  d5 {[%clk 0:02:52]} 2. Nf3 {[%clk 0:03:00]}  Nf6 {[%clk 0:02:49]} 3. c4 {[%clk 0:03:01]}  e6 {[%clk 0:02:48]} 4. g3 {[%clk 0:03:00]}  Be7 {[%clk 0:02:48]} 5. Bg2 {[%clk 0:02:59]}  O-O {[%clk 0:02:46]} 6. Nc3 {[%clk 0:02:58]}  dxc4 {[%clk 0:02:22]} 7. Ne5 {[%clk 0:02:56]}  Nc6 {[%clk 0:02:20]} 8. Bxc6 {[%clk 0:02:54]}  bxc6 {[%clk 0:02:21]} 9. Nxc6 {[%clk 0:02:54]}  Qe8 {[%clk 0:02:19]} 10. Qa4 {[%clk 0:02:52]}  Bb7 {[%clk 0:02:07]} 11. Nxe7+ {[%clk 0:02:51]}  Qxe7 {[%clk 0:02:08]} 12. O-O {[%clk 0:02:50]}  c5 {[%clk 0:02:05]} 13. Qxc4 {[%clk 0:02:44]}  Rac8 {[%clk 0:01:56]} 14. Bg5 {[%clk 0:02:35]}  cxd4 {[%clk 0:01:02]} 15. Qxd4 {[%clk 0:02:34]}  Rfd8 {[%clk 0:01:00]} 16. Qxa7 {[%clk 0:02:18]}  Qb4 {[%clk 0:00:53]} 17. Qe3 {[%clk 0:01:46]}  Qxb2 {[%clk 0:00:41]} 18. Rab1 {[%clk 0:01:43]}  Qxc3 {[%clk 0:00:39]} 19. Qxc3 {[%clk 0:01:16]}  Rxc3 {[%clk 0:00:40]} 20. Rxb7 {[%clk 0:01:16]}  Ra3 {[%clk 0:00:21]} 21. Rb2 {[%clk 0:01:10]}  Rda8 {[%clk 0:00:16]} 22. Rfb1 {[%clk 0:01:09]}  h6 {[%clk 0:00:14]} 23. Rb8+ {[%clk 0:01:05]}  Rxb8 {[%clk 0:00:13]} 24. Rxb8+ {[%clk 0:01:05]}  Kh7 {[%clk 0:00:14]} 25. Bxf6 {[%clk 0:01:05]}  gxf6 {[%clk 0:00:15]} 26. Rb2 {[%clk 0:01:04]}  Kg6 {[%clk 0:00:15]} 27. f3 {[%clk 0:01:03]}  f5 {[%clk 0:00:14]} 28. Kf2 {[%clk 0:01:03]}  h5 {[%clk 0:00:12]} 29. h4 {[%clk 0:01:00]}  e5 {[%clk 0:00:12]} 30. Rc2 {[%clk 0:00:56]}  f4 {[%clk 0:00:11]} 31. gxf4 {[%clk 0:00:45]}  exf4 {[%clk 0:00:12]} 32. Rc4 {[%clk 0:00:42]}  Rxa2 {[%clk 0:00:11]} 33. Rxf4 {[%clk 0:00:42]}  f5 {[%clk 0:00:11]} 34. Rb4 {[%clk 0:00:42]}  Ra6 {[%clk 0:00:10]} 35. Kg3 {[%clk 0:00:41]}  Re6 {[%clk 0:00:07]} 36. Rb2 {[%clk 0:00:40]}  Rc6 {[%clk 0:00:06]} 37. Kf4 {[%clk 0:00:40]}  Rc4+ {[%clk 0:00:06]} 38. e4 {[%clk 0:00:40]}  fxe4 {[%clk 0:00:06]} 39. fxe4 {[%clk 0:00:40]}  Rc1 {[%clk 0:00:03]} 40. Rb6+ {[%clk 0:00:36]}  Kg7 {[%clk 0:00:03]} 41. Kg5 {[%clk 0:00:33]}  Re1 {[%clk 0:00:01]} 42. Rb7+ {[%clk 0:00:28]} 1-0


[Site "https://www.chess.com"]

[Event "Titled Tuesday Blitz February 15 Early 2022"]
[White "Osmak, Yuliia"]
[Black "Guliyev, Namig"]
[WhiteFideId "14101602"]
[BlackFideId "13400363"]
[WhiteElo "2302"]
[BlackElo "2487"]
[Result "1/2-1/2"]
[Round "04"]
[TimeControl "180+1"]
[Date "2022.02.15"]
[WhiteClock "0:00:04"]
[BlackClock "0:00:37"]

1. e4 {[%clk 0:03:00]}  c5 {[%clk 0:02:59]} 2. b3 {[%clk 0:02:56]}  Nc6 {[%clk 0:02:57]} 3. Bb2 {[%clk 0:02:56]}  Nf6 {[%clk 0:02:57]} 4. e5 {[%clk 0:02:54]}  Nd5 {[%clk 0:02:57]} 5. Nf3 {[%clk 0:02:50]}  g6 {[%clk 0:02:56]} 6. Bc4 {[%clk 0:02:45]}  e6 {[%clk 0:02:54]} 7. Bxd5 {[%clk 0:02:21]}  exd5 {[%clk 0:02:54]} 8. e6 {[%clk 0:02:21]}  d4 {[%clk 0:02:54]} 9. exf7+ {[%clk 0:02:19]}  Kxf7 {[%clk 0:02:54]} 10. O-O {[%clk 0:02:19]}  Bg7 {[%clk 0:02:52]} 11. d3 {[%clk 0:02:10]}  Re8 {[%clk 0:02:52]} 12. Nbd2 {[%clk 0:02:09]}  d5 {[%clk 0:02:52]} 13. Re1 {[%clk 0:02:05]}  Bf5 {[%clk 0:02:32]} 14. Nf1 {[%clk 0:02:02]}  Rxe1 {[%clk 0:02:26]} 15. Qxe1 {[%clk 0:02:01]}  Qf6 {[%clk 0:02:22]} 16. Qd2 {[%clk 0:01:56]}  Re8 {[%clk 0:02:20]} 17. Ng3 {[%clk 0:01:52]}  Bd7 {[%clk 0:02:18]} 18. a3 {[%clk 0:01:36]}  h6 {[%clk 0:02:16]} 19. Re1 {[%clk 0:01:35]}  Rxe1+ {[%clk 0:02:14]} 20. Qxe1 {[%clk 0:01:36]}  Bg4 {[%clk 0:02:11]} 21. Nd2 {[%clk 0:01:32]}  Qe5 {[%clk 0:02:09]} 22. Qxe5 {[%clk 0:01:26]}  Bxe5 {[%clk 0:02:09]} 23. f3 {[%clk 0:01:24]}  Be6 {[%clk 0:02:08]} 24. Bc1 {[%clk 0:01:19]}  Bf4 {[%clk 0:02:04]} 25. Ne2 {[%clk 0:01:09]}  Bd6 {[%clk 0:01:58]} 26. g3 {[%clk 0:01:01]}  g5 {[%clk 0:01:54]} 27. Kf2 {[%clk 0:00:58]}  b5 {[%clk 0:01:53]} 28. Bb2 {[%clk 0:00:52]}  a5 {[%clk 0:01:46]} 29. f4 {[%clk 0:00:30]}  g4 {[%clk 0:01:43]} 30. Ke1 {[%clk 0:00:21]}  h5 {[%clk 0:01:42]} 31. Kd1 {[%clk 0:00:20]}  Ne7 {[%clk 0:01:41]} 32. b4 {[%clk 0:00:15]}  cxb4 {[%clk 0:01:32]} 33. axb4 {[%clk 0:00:16]}  Bxb4 {[%clk 0:01:28]} 34. Nxd4 {[%clk 0:00:15]}  Nf5 {[%clk 0:01:28]} 35. Nxb5 {[%clk 0:00:12]}  Ne3+ {[%clk 0:01:21]} 36. Kc1 {[%clk 0:00:12]}  Bxd2+ {[%clk 0:01:20]} 37. Kxd2 {[%clk 0:00:12]}  Nf1+ {[%clk 0:01:21]} 38. Ke2 {[%clk 0:00:12]}  Nxh2 {[%clk 0:01:21]} 39. Nd4 {[%clk 0:00:11]}  a4 {[%clk 0:01:20]} 40. Ba3 {[%clk 0:00:09]}  Bd7 {[%clk 0:01:12]} 41. Kf2 {[%clk 0:00:09]}  Kg6 {[%clk 0:01:02]} 42. Kg2 {[%clk 0:00:10]}  Nf3 {[%clk 0:01:01]} 43. Nxf3 {[%clk 0:00:10]}  gxf3+ {[%clk 0:01:02]} 44. Kxf3 {[%clk 0:00:11]}  Bg4+ {[%clk 0:01:02]} 45. Ke3 {[%clk 0:00:11]}  Bd1 {[%clk 0:01:01]} 46. c4 {[%clk 0:00:11]}  dxc4 {[%clk 0:00:55]} 47. dxc4 {[%clk 0:00:12]}  Kf5 {[%clk 0:00:55]} 48. c5 {[%clk 0:00:12]}  Ke6 {[%clk 0:00:54]} 49. c6 {[%clk 0:00:12]}  Bg4 {[%clk 0:00:54]} 50. Kd4 {[%clk 0:00:12]}  Bf3 {[%clk 0:00:52]} 51. Kc5 {[%clk 0:00:13]}  Bg2 {[%clk 0:00:48]} 52. Kb6 {[%clk 0:00:13]}  Kd5 {[%clk 0:00:41]} 53. f5 {[%clk 0:00:12]}  Bh3 {[%clk 0:00:40]} 54. f6 {[%clk 0:00:13]}  Ke6 {[%clk 0:00:41]} 55. Be7 {[%clk 0:00:11]}  Kf7 {[%clk 0:00:41]} 56. Kb7 {[%clk 0:00:10]}  a3 {[%clk 0:00:41]} 57. Bxa3 {[%clk 0:00:10]}  Kxf6 {[%clk 0:00:42]} 58. c7 {[%clk 0:00:10]}  Be6 {[%clk 0:00:38]} 59. c8=Q {[%clk 0:00:10]}  Bxc8+ {[%clk 0:00:38]} 60. Kxc8 {[%clk 0:00:10]}  Ke6 {[%clk 0:00:37]} 61. Bc1 {[%clk 0:00:07]}  Kf5 {[%clk 0:00:36]} 62. Ba3 {[%clk 0:00:05]}  Kg4 {[%clk 0:00:35]} 63. Bd6 {[%clk 0:00:04]}  h4 {[%clk 0:00:36]} 64. gxh4 {[%clk 0:00:04]}  Kxh4 {[%clk 0:00:37]} 1/2-1/2


[Site "https://www.chess.com"]

[Event "Titled Tuesday Blitz February 15 Early 2022"]
[White "Petrosyan, Manuel"]
[Black "Krysa, Leandro"]
[WhiteFideId "13300857"]
[BlackFideId "116807"]
[WhiteElo "2592"]
[BlackElo "2490"]
[Result "0-1"]
[Round "04"]
[TimeControl "180+1"]
[Date "2022.02.15"]
[WhiteClock "0:00:01"]
[BlackClock "0:00:02"]

1. Nf3 {[%clk 0:02:50]}  Nf6 {[%clk 0:02:59]} 2. c4 {[%clk 0:02:44]}  c5 {[%clk 0:02:59]} 3. Nc3 {[%clk 0:02:45]}  d5 {[%clk 0:02:59]} 4. cxd5 {[%clk 0:02:44]}  Nxd5 {[%clk 0:03:00]} 5. e3 {[%clk 0:02:44]}  Nc6 {[%clk 0:03:00]} 6. Bb5 {[%clk 0:02:42]}  Nxc3 {[%clk 0:02:59]} 7. bxc3 {[%clk 0:02:41]}  e6 {[%clk 0:02:56]} 8. O-O {[%clk 0:02:37]}  Be7 {[%clk 0:02:56]} 9. d4 {[%clk 0:02:29]}  O-O {[%clk 0:02:55]} 10. Bxc6 {[%clk 0:02:28]}  bxc6 {[%clk 0:02:55]} 11. Qa4 {[%clk 0:02:22]}  cxd4 {[%clk 0:02:48]} 12. cxd4 {[%clk 0:02:10]}  c5 {[%clk 0:02:47]} 13. dxc5 {[%clk 0:01:56]}  Bxc5 {[%clk 0:02:40]} 14. Qc6 {[%clk 0:01:44]}  Qd5 {[%clk 0:02:30]} 15. Qxd5 {[%clk 0:01:44]}  exd5 {[%clk 0:02:31]} 16. Bb2 {[%clk 0:01:44]}  Bf5 {[%clk 0:02:23]} 17. Rfc1 {[%clk 0:01:28]}  Rfc8 {[%clk 0:02:14]} 18. Bd4 {[%clk 0:01:26]}  Bxd4 {[%clk 0:01:38]} 19. Nxd4 {[%clk 0:01:25]}  Bd3 {[%clk 0:01:34]} 20. g4 {[%clk 0:01:19]}  h6 {[%clk 0:01:30]} 21. Kg2 {[%clk 0:01:18]}  Rc4 {[%clk 0:01:28]} 22. Rd1 {[%clk 0:01:15]}  Bg6 {[%clk 0:01:24]} 23. Rd2 {[%clk 0:01:13]}  Rac8 {[%clk 0:01:05]} 24. Kg3 {[%clk 0:01:13]}  a5 {[%clk 0:00:58]} 25. Nb5 {[%clk 0:01:02]}  R8c5 {[%clk 0:00:54]} 26. Nd4 {[%clk 0:00:57]}  a4 {[%clk 0:00:53]} 27. Rb2 {[%clk 0:00:54]}  a3 {[%clk 0:00:40]} 28. Rb3 {[%clk 0:00:36]}  Rc3 {[%clk 0:00:40]} 29. Rxc3 {[%clk 0:00:34]}  Rxc3 {[%clk 0:00:40]} 30. Rd1 {[%clk 0:00:34]}  Bd3 {[%clk 0:00:37]} 31. Rd2 {[%clk 0:00:29]}  Bc4 {[%clk 0:00:37]} 32. Rc2 {[%clk 0:00:29]}  Rd3 {[%clk 0:00:32]} 33. h4 {[%clk 0:00:29]}  g6 {[%clk 0:00:25]} 34. Nc6 {[%clk 0:00:21]}  Kg7 {[%clk 0:00:21]} 35. Ne5 {[%clk 0:00:18]}  Rd1 {[%clk 0:00:21]} 36. Rc3 {[%clk 0:00:17]}  Bxa2 {[%clk 0:00:15]} 37. Rxa3 {[%clk 0:00:17]}  Bb1 {[%clk 0:00:07]} 38. Ra7 {[%clk 0:00:08]}  Kf6 {[%clk 0:00:07]} 39. f4 {[%clk 0:00:08]}  Be4 {[%clk 0:00:05]} 40. Rxf7+ {[%clk 0:00:06]}  Ke6 {[%clk 0:00:05]} 41. g5 {[%clk 0:00:05]}  hxg5 {[%clk 0:00:04]} 42. hxg5 {[%clk 0:00:06]}  Rg1+ {[%clk 0:00:02]} 43. Kf2 {[%clk 0:00:07]}  Rg2+ {[%clk 0:00:03]} 44. Kf1 {[%clk 0:00:07]}  Rh2 {[%clk 0:00:03]} 45. Rf6+ {[%clk 0:00:08]}  Ke7 {[%clk 0:00:03]} 46. Nxg6+ {[%clk 0:00:08]}  Kd7 {[%clk 0:00:03]} 47. Ne5+ {[%clk 0:00:08]}  Kc7 {[%clk 0:00:03]} 48. g6 {[%clk 0:00:08]}  Rh1+ {[%clk 0:00:02]} 49. Kf2 {[%clk 0:00:09]}  Rh2+ {[%clk 0:00:03]} 50. Kg3 {[%clk 0:00:09]}  Rg2+ {[%clk 0:00:03]} 51. Kh3 {[%clk 0:00:10]}  Rg1 {[%clk 0:00:03]} 52. Rf7+ {[%clk 0:00:08]}  Kd6 {[%clk 0:00:04]} 53. g7 {[%clk 0:00:08]}  Ke6 {[%clk 0:00:04]} 54. Kh4 {[%clk 0:00:03]}  Bf5 {[%clk 0:00:03]} 55. Ra7 {[%clk 0:00:02]}  d4 {[%clk 0:00:03]} 56. exd4 {[%clk 0:00:03]}  Kd5 {[%clk 0:00:03]} 57. Rf7 {[%clk 0:00:02]}  Ke4 {[%clk 0:00:03]} 58. Kh5 {[%clk 0:00:02]}  Kxf4 {[%clk 0:00:03]} 59. Ng6+ {[%clk 0:00:01]}  Rxg6 {[%clk 0:00:02]} 60. d5 {[%clk 0:00:01]}  Rg1 {[%clk 0:00:02]} 0-1


[Site "https://www.chess.com"]